Cogmind - Beta 14 @@@ ROGUE MODE // 2024.09.12 @ 22:45:27 Player: SKIP Result: Destroyed by U9-1UT(R) with Subdweller Beam Cannon Performance ------------- Evolutions (0) 0 Regions Visited (3) 600 Robots Destroyed (38) 190 Value Destroyed (868) 868 Prototype IDs (12) 240 Alien Tech Used (0) 0 Bonus (62) 62 TOTAL SCORE: 1960 Bonus ------- Follower Combat Kills 74 Friendly Fire -12 Cogmind --------- Core Integrity 0/250 Matter 290/300 Energy 160/160 System Corruption 0% Temperature Cool (9) Movement Treading (240) Ox1 Location -10/Subcaves Parts ------- > --- POWER (1) -------- Light Nuclear Core > --- PROPULSION (2) --- Light Treads Light Treads > --- UTILITY (2) ------ High-capacity Storage Unit Core Shielding > --- WEAPON (2) ------- Subdweller Laser Battle Cannon > --- INVENTORY (20) --- Subdweller Power Source Makeshift Power Source Light Treads Subdweller Monowheel Subdweller Monowheel Subdweller Monowheel Improved Heat Sink Medium Matter Pod (100) Subdweller Optics Subdweller Optics Subdweller Optics Seismic Detector Scrap Shield Light Assault Rifle Subdweller Machine Gun Grenade Launcher Subdweller Shrapnel Launcher Subdweller Shrapnel Launcher Mining Laser Peak State ------------ > --- POWER ------------ Light Nuclear Core > --- PROPULSION ------- Light Treads Light Treads > --- UTILITY ---------- High-capacity Storage Unit Core Shielding > --- WEAPON ----------- Subdweller Laser Battle Cannon > --- INVENTORY -------- Subdweller Power Source Light Treads Light Treads Subdweller Monowheel Subdweller Monowheel Subdweller Monowheel Improved Heat Sink Medium Matter Pod Subdweller Optics Subdweller Optics Seismic Detector Scrap Shield Subdweller Laser Subdweller Laser Light Assault Rifle Grenade Launcher Subdweller Shrapnel Launcher Mining Laser [Rating: 14] Favorites ----------- Power Ion Engine Engine Ion Engine Power Core Light Nuclear Core Propulsion Light Treads Treads Light Treads Utility Core Shielding Storage High-capacity Storage Unit Processor Improved Targeting Computer Protection Core Shielding Weapon Assault Rifle Energy Gun Subdweller Laser Ballistic Gun Assault Rifle Ballistic Cannon Battle Cannon Special Weapon Mining Laser Build | -11 -10 -10 -10 ------- Run | Yrd Mat Min Sub Slots Evolved . | . . . . Power . | . . . . Propulsion . | . . . . Utility . | . . . . Weapon . | . . . . Parts Attached 41 | 5 13 2 21 Power 5 | . 2 . 3 Engine 4 | . 2 . 2 Core 1 | . . . 1 Reactor . | . . . . Propulsion 7 | 2 1 1 3 Treads 7 | 2 1 1 3 Leg . | . . . . Wheel . | . . . . Hover . | . . . . Flight . | . . . . Utility 5 | 1 4 . . Device . | . . . . Storage 3 | 1 2 . . Processor 1 | . 1 . . Hackware . | . . . . Protection 1 | . 1 . . Artifact . | . . . . Weapon 24 | 2 6 1 15 Energy Gun 7 | 1 2 . 4 Energy Cannon . | . . . . Ballistic Gun 12 | 1 3 1 7 Ballistic Cannon 1 | . . . 1 Launcher . | . . . . Special Weapon 4 | . 1 . 3 Impact Weapon . | . . . . Slashing Weapon . | . . . . Piercing Weapon . | . . . . Special Melee Weapon . | . . . . Unidentified Prototypes 1 | . 1 . . Parts Lost 14 | . . 2 12 Power 3 | . . . 3 Propulsion 4 | . . 1 3 Utility . | . . . . Weapon 7 | . . 1 6 Highest Loss Streak 6 | . . 2 6 To Critical Strikes . | . . . . Average Slot Usage (%) 99 | . 99 100 99 Engine 12 | . 14 14 10 Core 1 | . . . 2 Treads 27 | . 28 28 27 Storage 14 | . 14 14 14 Processor 3 | . 10 . . Protection 10 | . 3 14 14 Energy Gun 2 | . 1 . 5 Ballistic Gun 22 | . 26 28 14 Ballistic Cannon 1 | . . . 5 Peak Build Rating 14 | 5 10 9 14 Average Rating 9 | 4 8 8 10 On Entrance 5 | . 5 8 9 Naked Turns . | . . . . Heaviest Build 53 | 9 50 50 53 Greatest Support 40 | 40 40 40 40 Greatest Overweight (x) 1 | . 1 1 1 Average Overweight (x) . | . . 1 1 Largest Inventory Capacity 20 | 8 20 20 20 Average Capacity 17 | 7 14 20 20 Most Carried 20 | 8 16 19 20 Average Carried 16 | 5 13 18 19 Final Capacity 20 | 8 20 20 20 Final Carried 20 | 8 16 19 20 Class Distribution -------------------- 100% | Mutant Dominant Class ---------------- Mutant | -10/Materials Mutant | -10/Mines Mutant | -10/Subcaves Resources | -11 -10 -10 -10 ----------- Run | Yrd Mat Min Sub Matter Collected 1178 | 286 492 68 332 Remotely . | . . . . Salvage Created 1077 | 78 624 74 301 Parts 86 | 13 42 9 22 Haulers Intercepted 2 | . 2 . . Recyclers Shooed . | . . . . Parts Field Recycled . | . . . . Retrieved Matter . | . . . . Parts Self-Destructed 2 | . . . 2 Prevented . | . . . . Kills | -11 -10 -10 -10 ------- Run | Yrd Mat Min Sub Combat Hostiles Destroyed 28 | . 15 5 8 Guns 26 | . 15 5 6 Cannons 2 | . . . 2 Classes Destroyed 7 | 1 5 . 1 Tunneler 4 | 4 . . . Hauler 2 | . 2 . . Operator 2 | . 2 . . Watcher 2 | . 2 . . Swarmer 11 | . 6 5 . Grunt 9 | . 9 . . Subdweller 8 | . . . 8 Best Kill Streak 4 | 2 4 3 3 Combat Bots Only 3 | . 3 3 3 Max Kills in Single Turn 1 | 1 1 1 1 Gunslinging . | . . . . Exploded . | . . . . Melee . | . . . . Uniques/NPCs Destroyed . | . . . . Combat | -11 -10 -10 -10 -------- Run | Yrd Mat Min Sub Hostile Shots Fired 150 | . 56 25 69 Missed 36 | . 16 5 15 Damage Taken 1950 | . 404 155 1391 Core 258 | . 53 15 190 Absorbed by Shields . | . . . . Redirected to Shielding 44 | . . 3 41 Core Remaining (%) 100 | 100 . . . Volleys Fired 147 | 12 60 10 65 Largest 2 | 2 2 2 2 Hottest 100 | 70 100 40 100 Shots Fired 267 | 24 113 20 110 Gun 241 | 24 107 20 90 Cannon 7 | . . . 7 Launcher . | . . . . Special 19 | . 6 . 13 Kinetic 210 | 12 93 20 85 Thermal 57 | 12 20 . 25 Explosive . | . . . . Electromagnetic . | . . . . Robot Hit Streak 33 | 8 10 4 33 Robot Miss Streak 5 | 3 5 2 2 Penetration Max . | . . . . Secondary Targets 1 | . 1 . . Max Gunslinging Chain 1 | . 1 . . Shots Hit Robots 183 | 14 74 13 82 Core Hits 66 | 4 34 5 23 Critical Kills 3 | 1 . . 2 Critical Parts Destroyed . | . . . . Critical Strikes 4 | 2 . . 2 Burn 1 | 1 . . . Destroy 3 | 1 . . 2 Melee Attacks . | . . . . Impact . | . . . . Slashing . | . . . . Piercing . | . . . . Sneak Attacks . | . . . . Combat Hostiles . | . . . . Follow-up Attacks . | . . . . Damage Inflicted 2260 | 187 953 147 973 Guns 2152 | 187 949 147 869 Cannons 104 | . . . 104 Explosions . | . . . . Melee . | . . . . Ramming 4 | . 4 . . Kinetic 1912 | 123 799 147 843 Thermal 344 | 64 150 . 130 Explosive . | . . . . Electromagnetic . | . . . . Impact . | . . . . Slashing . | . . . . Piercing . | . . . . Highest Corruption . | . . . . Average Corruption . | . . . . Corruption Purged . | . . . . Corruption Blocked . | . . . . Overload Shots . | . . . . Overflow Damage . | . . . . Projectiles . | . . . . Explosions . | . . . . Melee . | . . . . Knockbacks 1 | . . . 1 Impact . | . . . . Kinetic 1 | . . . 1 Secondary . | . . . . Self-Inflicted Damage . | . . . . Shots . | . . . . Rammed 2 | . 2 . . Targets Rammed 3 | . 3 . . Kicked . | . . . . Crushed 1 | . 1 . . Highest Temperature 60 | . 60 . 1 Average Temperature 18 | . 18 . 1 Received Heat Transfer 432 | . 147 . 285 Siege Activations . | . . . . Robots Corrupted . | . . . . Combat Hostiles . | . . . . Parts Fried . | . . . . Impact Corruptions . | . . . . Robots Melted . | . . . . Combat Hostiles . | . . . . Parts Melted 3 | . 1 1 1 Heat Transferred 853 | 259 444 . 150 Parts Sabotaged . | . . . . Parts Stolen . | . . . . Parts Stripped . | . . . . Power Chain Reactions . | . . . . Alert | -11 -10 -10 -10 ------- Run | Yrd Mat Min Sub Peak Influence 264 | 20 264 130 . Initial 41 | . 13 41 . Average 70 | 5 126 25 . Maximum Alert Level 1 | . 1 . . Low Security (%) 97 | 100 94 100 . Level 1 2 | . 5 . . Level 2 . | . . . . Level 3 . | . . . . Level 4 . | . . . . Level 5 . | . . . . High Security . | . . . . Max Security . | . . . . Squads Dispatched 3 | . 3 . . Investigation . | . . . . Extermination . | . . . . Reinforcement 3 | . 3 . . Assault . | . . . . Garrison . | . . . . Intercept . | . . . . Searches Triggered . | . . . . Construction Impeded . | . . . . Haulers Reinforced . | . . . . Active Scanning Responses . | . . . . Cargo Convoy Interrupts . | . . . . Stealth | -11 -10 -10 -10 --------- Run | Yrd Mat Min Sub Distress Signals 2 | . 2 . . Communications Jammed . | . . . . Distress Signals . | . . . . Times Spotted 46 | . 27 9 10 Peak Tracking Total 3 | . 3 3 2 Tactical Retreats 1 | . 1 . . Traps | -11 -10 -10 -10 ------- Run | Yrd Mat Min Sub Traps Triggered 1 | . 1 . . Indirectly . | . . . . Trap Hack Attempts . | . . . . Triggered . | . . . . Disarmed . | . . . . Reprogrammed . | . . . . Reused . | . . . . Traps Extracted . | . . . . Installed . | . . . . Triggered 2 | . . . 2 Machines | -11 -10 -10 -10 ---------- Run | Yrd Mat Min Sub Machines Disabled 1 | . . 1 . Max in Single Turn . | . . . . Machines Repaired . | . . . . Machines Dismantled . | . . . . Machines Sabotaged . | . . . . Overloaded Fab Kills . | . . . . Hacking | -11 -10 -10 -10 --------- Run | Yrd Mat Min Sub Machines Accessed 7 | . 5 1 1 Terminals 5 | . 4 1 . Fabricators . | . . . . Repair Stations . | . . . . Recycling Units 1 | . 1 . . Scanalyzers . | . . . . Garrison Access . | . . . . Total Hacks 22 | . 11 2 9 Successful 16 | . 6 1 9 Failed 6 | . 5 1 . Catastrophic . | . . . . Database Lockouts . | . . . . Manual 12 | . 10 2 . Terminals 12 | . 10 2 . Fabricators . | . . . . Repair Stations . | . . . . Recycling Units 1 | . 1 . . Scanalyzers . | . . . . Garrison Access . | . . . . Terminal Hacks 10 | . 1 . 9 Record 8 | . . . 8 Hauler Manifests 1 | . 1 . . Derelict Proto ID Bank 1 | . . . 1 Fabricator Hacks . | . . . . Repair Station Hacks . | . . . . Recycling Unit Hacks 1 | . 1 . . Report Inventory 1 | . 1 . . Scanalyzer . | . . . . Garrison Access Hacks . | . . . . Unauthorized Hacks 5 | . 4 1 . Terminals 5 | . 4 1 . Botnet 5 | . 4 1 . Fabricators . | . . . . Repair Stations . | . . . . Recycling Units . | . . . . Scanalyzers . | . . . . Garrison Access . | . . . . Data Cores Recovered . | . . . . Used . | . . . . Hacking Detections 4 | . 4 . . Full Trace Events . | . . . . Feedback Events . | . . . . Feedback Blocked . | . . . . Robot Schematics Acquired . | . . . . Robots Built . | . . . . Authchips . | . . . . Time . | . . . . Total Robot Build Rating . | . . . . Part Schematics Acquired . | . . . . Parts Built . | . . . . Authchips . | . . . . Time . | . . . . Total Part Build Rating . | . . . . Parts Repaired . | . . . . Time . | . . . . Parts Recycled . | . . . . Recycled Matter . | . . . . Retrieved Matter . | . . . . Retrieved Components . | . . . . Parts Scanalyzed . | . . . . Part Schematics Acquired . | . . . . Parts Damaged . | . . . . Bothacking | -11 -10 -10 -10 ------------ Run | Yrd Mat Min Sub Used RIF Installer . | . . . . Robots Hacked . | . . . . Non-combat . | . . . . Combat . | . . . . Robot Hacks Applied . | . . . . Relay Couplers Released . | . . . . Fabnet Peak Effective % . | . . . . Robots Rewired . | . . . . Allies Hacked . | . . . . Hacks Repelled . | . . . . Allies | -11 -10 -10 -10 -------- Run | Yrd Mat Min Sub Total Allies 4 | . . 4 . Largest Group 4 | . . 4 4 Highest-Rated Group 71 | . . 71 71 Highest-Rated Ally 31 | . . 31 31 Total Orders . | . . . . Ally Attacks 33 | . . 10 23 Total Damage 254 | . . 125 129 Kills 4 | . . 2 2 Allies Corrupted . | . . . . Allies Melted . | . . . . Intel | -11 -10 -10 -10 ------- Run | Yrd Mat Min Sub Robot Analysis Total . | . . . . Derelict Logs Recovered 1 | . . 1 . Drone Launches . | . . . . Drone Recoveries . | . . . . Exploration | -11 -10 -10 -10 ------------- Run | Yrd Mat Min Sub Turns Passed 5834 | 263 1804 1853 1914 Spaces Moved 2453 | 135 889 743 686 Core 6 | 6 . . . Treads 2447 | 129 889 743 686 Legs . | . . . . Wheels . | . . . . Hover . | . . . . Flight . | . . . . Fastest Speed 50 | 50 160 240 240 Average Speed 208 | 155 165 240 240 Slowest Speed 240 | 160 240 240 240 Overloaded Moves . | . . . . Propulsion Burnouts . | . . . . Robots Hopped . | . . . . Cave-ins Triggered . | . . . . Exploration Rate (%) 61 | 7 94 100 45 Regions Visited 3 Branch Regions 2 Pre-discovered Areas 2 | . . 1 1 Known Exits Taken . | . . . . Unknown Exits Taken 3 | 1 1 1 . Scrap Searched 2 | . . 1 1 Spaces Dug 2 | . 2 . . Terrain Destroyed 3 | . 2 . 1 Melee . | . . . . Projectile 3 | . 2 . 1 AOE . | . . . . Terrain Rammed . | . . . . Walls Destroyed . | . . . . Machines Disabled . | . . . . Actions | -11 -10 -10 -10 --------- Run | Yrd Mat Min Sub Total 2890 | 166 1096 795 833 Wait 170 | . 108 36 26 Move 2450 | 134 888 742 686 Hop . | . . . . Pick Up 57 | 14 15 5 23 Fast Attach 3 | . 3 . . Attach 21 | 5 2 2 12 Detach . | . . . . Swap 17 | . 8 . 9 Drop 22 | 1 9 . 12 Fire 147 | 12 60 10 65 Melee . | . . . . Ram . | . . . . Kick . | . . . . Crush 3 | . 3 . . Escape Stasis . | . . . . Rewire . | . . . . Trap . | . . . . Miscellaneous . | . . . . Route ------- -11/Scrapyard -10/Materials (discovered 6 exits: *Mat x3 / *Min x2 / *Sub) -10/Mines (discovered 3 exits: *Mat x2 / *Sub) -10/Subcaves (discovered 2 exits: [*Mat x2]) History --------- Turn | Location | Event 5 | -11/Scrapyard | Discovered new exit (range 15) 264 | -11/Scrapyard | Entered Materials 307 | -10/Materials | Build established: Mutant 405 | -10/Materials | Discovered new exit (range 15) 549 | -10/Materials | Discovered new exit (range 12) 825 | -10/Materials | Discovered new exit (range 16) 927 | -10/Materials | Discovered new exit (range 4) 1191 | -10/Materials | Discovered new exit (range 6) 1542 | -10/Materials | Discovered new exit (range 3) 2068 | -10/Materials | Entered Mines 2074 | -10/Mines | Escorted by a lone wolf Derelict 2094 | -10/Mines | Learned location of Storage (-7) 2349 | -10/Mines | Discovered new exit (range 8) 2988 | -10/Mines | Identified exit to Materials 3024 | -10/Mines | Assisted by bots powering up and referring to "LRC-V3" 3907 | -10/Mines | Discovered new exit (range 5) 3921 | -10/Mines | Entered Subcaves 3921 | -10/Subcaves | Accompanied by 4 allies 4085 | -10/Subcaves | A Subdweller sparked back to life 4085 | -10/Subcaves | A Subdweller sparked back to life 4085 | -10/Subcaves | A Subdweller sparked back to life 4142 | -10/Subcaves | Lost 4 allies 4368 | -10/Subcaves | Visited 4L-MR0's lab 4522 | -10/Subcaves | Core integrity fell below 50% 4594 | -10/Subcaves | Lost 6 parts (1p1n4w) 4631 | -10/Subcaves | Discovered new exit (range 10) 4685 | -10/Subcaves | Discovered new exit (range 7) 4965 | -10/Subcaves | Shifting Twisted Machinery released Battle Cannon 4968 | -10/Subcaves | Shifting Twisted Machinery released Mak. Spear 4979 | -10/Subcaves | Shifting Twisted Machinery released Sub. Laser 4981 | -10/Subcaves | Shifting Twisted Machinery released Flamer 5605 | -10/Subcaves | Learned location of Zion (-7) 5605 | -10/Subcaves | Met a Zionite searching for "candidates" 5662 | -10/Subcaves | Ambushed by Subdweller buried in earth 5668 | -10/Subcaves | Core integrity fell below 20% 5691 | -10/Subcaves | Lost 3 parts (1n2w) 5835 | -10/Subcaves | Destroyed by U9-1UT(R) with Subdweller Beam Cannon Last Messages --------------- World map updated: -7/Zion. 05651_ DZ-ORQ(R) destroyed. 05654_ Acquired 5 matter. 05656_ Sub. Laser destroyed. 05658_ Acquired 10 matter. 05658_ Lgt. Treads destroyed. 05660_ Sub. Laser destroyed. 05661_ ED-RDS(R) knocked back. 05663_ 50-1CV(R): "ARGHSUB!" 05667_ ED-RDS(R) destroyed. 05671_ 50-1CV(R) suffers critical hit (Destroy). 05671_ 50-1CV(R) destroyed. 05686_ Acquired Mak. Power Source. 05687_ Acquired 2 matter. 05689_ Acquired 18 matter. 05694_ Acquired Sub. Shrapnel Launcher. 05697_ Acquired Sub. Optics. 05727_ Acquired 20 matter. 05737_ Dropped Sub. Laser. 05833_ U9-1UT(R): "LEAVESUB!" Map ----- +----------------------------------------------------+ | | | | | | | | | | | | | ?????????????????????????????????????????????????? | | ?????????????????????????????????????????????????? | | ?????????????????????????????????????????????????? | | ?????????????????????????????????????????????????? | | ?????????????????????????????????????????????????? | | ?????????????????????????????????????????????????? | | ?????????????????????????????????????????????????? | | ?????????????????????????????????????????????????? | | ?????????????????????????????????????????????????? | | ?????????????????????????????????????????????????? | | ?????????????????????????????????????????????????? | | ?????????????????????????????????????????????????? | | ?????????????????????????????????????????????????? | | ?????????????????????????????????????????????????? | | ??????????????????????#######?????######?????????? | | ?????????????????????## ##??? ?????????? | | ????????????????????## ### ??????????? | | ???????????????###??? " ???????????? | | ?????????????### "###?? ""????????????? | | ?????????????""""" ##??#@ #??????????????????? | | ?????????????""""" ##### #### """"??????????? | | ?????????????#""""" " ## ""????????? | | ?????????????##""" "## ""?????????? | | ??????????????# " ### ""?????????? | | ??????????????# ##?#### # # ## " ?????????? | | ??????????????# ##????? ## ##??? ?????????? | | ??????????????# ##??????# ? R ????? ?????????? | | ?????????????## #??????### #? #??????????????? | | ?????????????# ##????????###?? #?????????????? | | ?????????????## #??????????????##?????????????? | | ??????????????## #?????????????????????????????? | | ??????????????## #?????????????????????????????? | | ?# ??????????#"" #?????????????????????????????? | | # ????###??# "" #?????????????????????????????? | | ?####" #?#### ####??????????????????????????? | | # # # ##?## #??????????????????????????? | | ### ##??????????????????????????? | | ## ? ## ##???????????????????????????? | | ## #????# ### #????????????????????????????? | | #????# ##& #?##?????????????????????????? | | ##?### % ## ##????????????????????????? | | ### = #????????????????????????? | | ##### = #????????????????????????? | | #???# ##???????????????????????? | +----------------------------------------------------+ Best States ------------- Heat Dissipation 25 Energy Generation 14 Energy Capacity 250 Matter Stores 300 Matter Capacity 300 Sight Range 16 Terrain Scan Density 10 Core Shielding 20 Evasion (%) 40 Targeting Accuracy 6 Recoil Reduction 2 Item Schematics ----------------- None Robot Schematics ------------------ None Fabricated ------------ Nothing Alien Tech Used ----------------- None Achievements -------------- None Challenges ------------ None Game ------ Seed NetworkSurgeConstruct Manual? 0 Play Time 00:34:20 Cumulative 46.0 hours Start 2024.09.12 @ 22:12:40 End 2024.09.12 @ 22:45:27 Sessions 1 Manual Loads 0 Difficulty Rogue Special Mode None Game No. 79 Rogue 79 Adventurer 0 Explorer 0 Win Type - Total 0 Types 0/0/0/0/0/0/0/0/0 Lore% 42 Gallery% 30 Achievement% 26 Wizard Run 0 Options --------- Layout 1 ASCII 0 Keyboard 0 Movement Mouse Keybinds 0 Fullscreen 2 Font 24/Smallcaps Map View 50x35 Zoom Use 0% Tactical HUD 1 Map Filters NONE Filters NONE Steam 1 RUN: 3d26725f-dbcd-42a0-95a5-8dba9f01654d